Cogmind - Beta 14 @@@ ROGUE MODE // 2025.04.27 @ 17:26:08 Player: nameimpending Result: Destroyed by Y-45 Defender with Heavy Assault Rifle Performance ------------- Evolutions (1) 500 Regions Visited (4) 800 Robots Destroyed (26) 130 Value Destroyed (558) 558 Prototype IDs (1) 20 Alien Tech Used (0) 0 Bonus (0) 0 TOTAL SCORE: 2008 Bonus ------- None Cogmind --------- Core Integrity 0/400 Matter 173/300 Energy 33/100 System Corruption 6% Temperature Cool (15) Movement Core (50) Location -9/Storage Parts ------- > --- POWER (1) -------- (None) > --- PROPULSION (2) --- (None) > --- UTILITY (4) ------ ECM Suite > --- WEAPON (2) ------- Light Assault Rifle > --- INVENTORY (5) ---- ECM Suite Hardened Light Armor Plating Faulty Improved Medium Laser Mining Claw Peak State ------------ > --- POWER ------------ Light Nuclear Core > --- PROPULSION ------- Aluminum Leg Aluminum Leg > --- UTILITY ---------- Improved Heat Sink Small Storage Unit > --- WEAPON ----------- Assault Rifle Light Assault Rifle > --- INVENTORY -------- Wheel Targeting Computer Light Assault Rifle [Rating: 11] Favorites ----------- Power Light Ion Engine Engine Light Ion Engine Power Core Light Nuclear Core Propulsion Light Treads Treads Light Treads Leg Aluminum Leg Wheel Wheel Utility Small Storage Unit Device Improved Terrain Scanner Storage Small Storage Unit Protection Hardened Light Armor Plating Weapon Light Assault Rifle Energy Gun Improved Medium Laser Ballistic Gun Light Assault Rifle Build | -11 -10 -10 -9 -9 ------- Run | Yrd Mat Min Mat Sto Slots Evolved 2 | . . . 2 . Power . | . . . . . Propulsion . | . . . . . Utility 2 | . . . 2 . Weapon . | . . . . . Parts Attached 33 | 10 12 1 8 2 Power 5 | 1 4 . . . Engine 4 | 1 3 . . . Core 1 | . 1 . . . Reactor . | . . . . . Propulsion 9 | 4 4 1 . . Treads 3 | 2 1 . . . Leg 2 | . 2 . . . Wheel 4 | 2 1 1 . . Hover . | . . . . . Flight . | . . . . . Utility 7 | 3 1 . 2 1 Device 4 | 1 1 . 1 1 Storage 2 | 2 . . . . Processor . | . . . . . Hackware . | . . . . . Protection 1 | . . . 1 . Artifact . | . . . . . Weapon 12 | 2 3 . 6 1 Energy Gun 1 | . . . 1 . Energy Cannon . | . . . . . Ballistic Gun 11 | 2 3 . 5 1 Ballistic Cannon . | . . . . . Launcher . | . . . . . Special Weapon . | . . . . . Impact Weapon . | . . . . . Slashing Weapon . | . . . . . Piercing Weapon . | . . . . . Special Melee Weapon . | . . . . . Unidentified Prototypes 1 | . . . 1 . Parts Lost 13 | . 7 2 4 . Power 3 | . 2 . 1 . Propulsion 5 | . 2 1 2 . Utility 3 | . 1 1 1 . Weapon 2 | . 2 . . . Highest Loss Streak 3 | . 3 2 3 . To Critical Strikes . | . . . . . Average Slot Usage (%) 83 | . 96 75 73 13 Engine 10 | . 11 14 10 . Treads 10 | . 20 . . . Leg 7 | . 4 18 10 . Wheel 4 | . 1 9 8 . Device 11 | . 13 4 9 8 Storage 12 | . 14 14 10 . Protection 1 | . . . 2 . Ballistic Gun 23 | . 26 14 20 5 Peak Build Rating 11 | 9 11 8 10 2 Average Rating 8 | 6 9 5 7 . On Entrance 4 | . 9 8 5 . Naked Turns 25 | . . . 6 19 Heaviest Build 19 | 18 16 10 19 3 Greatest Support 40 | 40 40 20 10 3 Greatest Overweight (x) 4 | . 1 . 4 . Average Overweight (x) . | . . . . . Largest Inventory Capacity 8 | 8 8 8 8 5 Average Capacity 7 | 7 8 8 7 5 Most Carried 8 | 2 4 2 8 5 Average Carried 2 | . 2 1 2 4 Final Capacity 8 | 8 8 8 5 5 Final Carried 5 | 1 2 1 5 4 Class Distribution -------------------- 90% | Mutant 9% | Scavenger-Mutant Dominant Class ---------------- Mutant | -10/Materials Mutant | -10/Mines Mutant | -9/Materials Mutant | -9/Storage Resources | -11 -10 -10 -9 -9 ----------- Run | Yrd Mat Min Mat Sto Matter Collected 729 | 268 366 . 95 . Remotely . | . . . . . Salvage Created 760 | 103 562 . 95 . Parts 63 | 7 40 . 16 . Haulers Intercepted . | . . . . . Recyclers Shooed . | . . . . . Parts Field Recycled . | . . . . . Retrieved Matter . | . . . . . Parts Self-Destructed . | . . . . . Prevented . | . . . . . Kills | -11 -10 -10 -9 -9 ------- Run | Yrd Mat Min Mat Sto Combat Hostiles Destroyed 19 | . 16 . 3 . Guns 19 | . 16 . 3 . Classes Destroyed 6 | 2 4 . . . Worker 1 | . 1 . . . Tunneler 1 | 1 . . . . Recycler 1 | 1 . . . . Watcher 4 | . 1 . 3 . Swarmer 8 | . 5 . 3 . Grunt 11 | . 11 . . . Best Kill Streak 5 | 1 5 . 3 . Combat Bots Only 4 | . 4 . 3 . Max Kills in Single Turn 1 | 1 1 . 1 . Gunslinging . | . . . . . Exploded . | . . . . . Melee . | . . . . . Uniques/NPCs Destroyed . | . . . . . Combat | -11 -10 -10 -9 -9 -------- Run | Yrd Mat Min Mat Sto Hostile Shots Fired 241 | . 119 8 104 10 Missed 58 | . 30 4 22 2 Damage Taken 1868 | . 1007 54 706 101 Core 640 | . 224 12 339 65 Absorbed by Shields . | . . . . . Core Remaining (%) 52 | 100 . 5 . . Volleys Fired 99 | 6 62 . 26 5 Largest 2 | 2 2 . 2 1 Hottest 43 | 40 40 . 43 20 Shots Fired 185 | 12 117 . 51 5 Gun 185 | 12 117 . 51 5 Cannon . | . . . . . Launcher . | . . . . . Special . | . . . . . Kinetic 185 | 12 117 . 51 5 Thermal . | . . . . . Explosive . | . . . . . Electromagnetic . | . . . . . Robot Hit Streak 9 | 3 9 . 3 5 Robot Miss Streak 8 | 2 2 . 8 1 Penetration Max . | . . . . . Secondary Targets 4 | . 4 . . . Max Gunslinging Chain 1 | . 1 . . . Shots Hit Robots 104 | 7 79 . 14 4 Core Hits 48 | 3 36 . 8 1 Critical Kills . | . . . . . Critical Parts Destroyed . | . . . . . Critical Strikes . | . . . . . Melee Attacks . | . . . . . Impact . | . . . . . Slashing . | . . . . . Piercing . | . . . . . Sneak Attacks . | . . . . . Combat Hostiles . | . . . . . Follow-up Attacks . | . . . . . Damage Inflicted 1157 | 93 837 . 197 30 Guns 1133 | 93 813 . 197 30 Cannons . | . . . . . Explosions . | . . . . . Melee . | . . . . . Ramming 24 | . 24 . . . Kinetic 1133 | 93 813 . 197 30 Thermal . | . . . . . Explosive . | . . . . . Electromagnetic . | . . . . . Impact . | . . . . . Slashing . | . . . . . Piercing . | . . . . . Highest Corruption 6 | . 2 2 6 6 Average Corruption 3 | . 2 2 4 6 Corruption Purged . | . . . . . Corruption Blocked . | . . . . . Effects 19 | . 5 1 12 1 Message Errors 3 | . . . 3 . Matter Fused 5 | . 2 . 3 . Heat Flow Errors 1 | . . . 1 . Energy Discharges 3 | . 1 . 1 1 Parts Rejected 1 | . . . 1 . Data Loss (minor) 3 | . . 1 2 . Data Loss (major) 1 | . 1 . . . Weapon Failures 2 | . 1 . 1 . Overload Shots . | . . . . . Overflow Damage . | . . . . . Projectiles . | . . . . . Explosions . | . . . . . Melee . | . . . . . Knockbacks . | . . . . . Impact . | . . . . . Kinetic . | . . . . . Secondary . | . . . . . Self-Inflicted Damage 8 | . 8 . . . Shots . | . . . . . Rammed 2 | . 2 . . . Targets Rammed 3 | . 3 . . . Kicked 1 | . 1 . . . Crushed . | . . . . . Highest Temperature 227 | . 42 13 227 . Average Temperature 17 | . 7 13 40 . Received Heat Transfer 678 | . 501 48 96 33 Effects 1 | . . . 1 . Interference 1 | . . . 1 . Siege Activations . | . . . . . Robots Corrupted . | . . . . . Combat Hostiles . | . . . . . Parts Fried . | . . . . . Impact Corruptions . | . . . . . Robots Melted . | . . . . . Combat Hostiles . | . . . . . Parts Melted . | . . . . . Heat Transferred . | . . . . . Parts Sabotaged . | . . . . . Parts Stolen . | . . . . . Parts Stripped . | . . . . . Power Chain Reactions . | . . . . . Alert | -11 -10 -10 -9 -9 ------- Run | Yrd Mat Min Mat Sto Peak Influence 287 | 10 287 111 116 46 Initial 111 | . 6 111 35 25 Average 82 | 3 114 94 62 43 Maximum Alert Level 1 | . 1 . . . Low Security (%) 93 | 100 86 100 100 100 Level 1 6 | . 13 . . . Level 2 . | . . . . . Level 3 . | . . . . . Level 4 . | . . . . . Level 5 . | . . . . . High Security . | . . . . . Max Security . | . . . . . Squads Dispatched 6 | . 4 . 2 . Investigation 4 | . 3 . 1 . Extermination . | . . . . . Reinforcement 2 | . 1 . 1 . Assault . | . . . . . Garrison . | . . . . . Intercept . | . . . . . Searches Triggered . | . . . . . Construction Impeded . | . . . . . Haulers Reinforced . | . . . . . Active Scanning Responses . | . . . . . Cargo Convoy Interrupts . | . . . . . Stealth | -11 -10 -10 -9 -9 --------- Run | Yrd Mat Min Mat Sto Distress Signals 7 | . 2 . 4 1 Communications Jammed . | . . . . . Distress Signals . | . . . . . Times Spotted 62 | . 26 2 30 4 Peak Tracking Total 7 | . 7 2 7 3 Tactical Retreats 11 | . 3 . 8 . Traps | -11 -10 -10 -9 -9 ------- Run | Yrd Mat Min Mat Sto Traps Triggered 5 | . 3 . 2 . Indirectly . | . . . . . Trap Hack Attempts . | . . . . . Triggered . | . . . . . Disarmed . | . . . . . Reprogrammed . | . . . . . Reused . | . . . . . Traps Extracted . | . . . . . Installed . | . . . . . Triggered . | . . . . . Machines | -11 -10 -10 -9 -9 ---------- Run | Yrd Mat Min Mat Sto Machines Disabled . | . . . . . Max in Single Turn . | . . . . . Machines Repaired . | . . . . . Machines Dismantled . | . . . . . Machines Sabotaged . | . . . . . Overloaded Fab Kills . | . . . . . Hacking | -11 -10 -10 -9 -9 --------- Run | Yrd Mat Min Mat Sto Machines Accessed 9 | . 5 . 3 1 Terminals 8 | . 4 . 3 1 Fabricators . | . . . . . Repair Stations . | . . . . . Recycling Units 1 | . 1 . . . Scanalyzers . | . . . . . Garrison Access . | . . . . . Total Hacks 28 | . 14 . 10 4 Successful 11 | . 5 . 5 1 Failed 17 | . 9 . 5 3 Catastrophic 1 | . 1 . . . Database Lockouts . | . . . . . Manual 27 | . 14 . 9 4 Terminals 27 | . 13 . 10 4 Fabricators . | . . . . . Repair Stations . | . . . . . Recycling Units 1 | . 1 . . . Scanalyzers . | . . . . . Garrison Access . | . . . . . Terminal Hacks 2 | . 1 . 1 . Recycling Unit Index 1 | . 1 . . . Zone Layout 1 | . . . 1 . Fabricator Hacks . | . . . . . Repair Station Hacks . | . . . . . Recycling Unit Hacks . | . . . . . Scanalyzer . | . . . . . Garrison Access Hacks . | . . . . . Unauthorized Hacks 9 | . 4 . 4 1 Terminals 8 | . 3 . 4 1 Assimilate 1 | . . . . 1 Botnet 6 | . 3 . 3 . Operators 1 | . . . 1 . Fabricators . | . . . . . Repair Stations . | . . . . . Recycling Units 1 | . 1 . . . Tunnel 1 | . 1 . . . Scanalyzers . | . . . . . Garrison Access . | . . . . . Data Cores Recovered . | . . . . . Used . | . . . . . Hacking Detections 8 | . 4 . 3 1 Full Trace Events . | . . . . . Feedback Events . | . . . . . Feedback Blocked . | . . . . . Robot Schematics Acquired . | . . . . . Robots Built . | . . . . . Authchips . | . . . . . Time . | . . . . . Total Robot Build Rating . | . . . . . Part Schematics Acquired . | . . . . . Parts Built . | . . . . . Authchips . | . . . . . Time . | . . . . . Total Part Build Rating . | . . . . . Parts Repaired . | . . . . . Time . | . . . . . Parts Recycled . | . . . . . Recycled Matter . | . . . . . Retrieved Matter . | . . . . . Retrieved Components . | . . . . . Parts Scanalyzed . | . . . . . Part Schematics Acquired . | . . . . . Parts Damaged . | . . . . . Bothacking | -11 -10 -10 -9 -9 ------------ Run | Yrd Mat Min Mat Sto Used RIF Installer . | . . . . . Robots Hacked . | . . . . . Non-combat . | . . . . . Combat . | . . . . . Robot Hacks Applied . | . . . . . Relay Couplers Released . | . . . . . Fabnet Peak Effective % . | . . . . . Robots Rewired . | . . . . . Allies Hacked . | . . . . . Hacks Repelled . | . . . . . Allies | -11 -10 -10 -9 -9 -------- Run | Yrd Mat Min Mat Sto Total Allies 1 | . . . . 1 Largest Group 1 | . . . . 1 Highest-Rated Group 10 | . . . . 10 Highest-Rated Ally 10 | . . . . 10 Total Orders . | . . . . . Ally Attacks . | . . . . . Total Damage . | . . . . . Kills . | . . . . . Allies Corrupted . | . . . . . Allies Melted . | . . . . . Intel | -11 -10 -10 -9 -9 ------- Run | Yrd Mat Min Mat Sto Robot Analysis Total . | . . . . . Derelict Logs Recovered 1 | . . 1 . . Drone Launches . | . . . . . Drone Recoveries . | . . . . . Exploration | -11 -10 -10 -9 -9 ------------- Run | Yrd Mat Min Mat Sto Turns Passed 1561 | 125 731 27 636 42 Spaces Moved 916 | 72 340 30 416 58 Core 87 | 3 . . 26 58 Treads 311 | 42 269 . . . Legs 111 | . 55 5 51 . Wheels 407 | 27 16 25 339 . Hover . | . . . . . Flight . | . . . . . Fastest Speed 50 | 50 95 80 50 50 Average Speed 119 | 125 150 86 105 50 Slowest Speed 250 | 160 190 120 250 50 Overloaded Moves . | . . . . . Propulsion Burnouts . | . . . . . Robots Hopped . | . . . . . Cave-ins Triggered . | . . . . . Exploration Rate (%) 24 | 4 65 17 22 12 Regions Visited 4 Branch Regions 2 Pre-discovered Areas 1 | . 1 . . . Known Exits Taken . | . . . . . Unknown Exits Taken 4 | 1 1 1 1 . Scrap Searched . | . . . . . Spaces Dug . | . . . . . Terrain Destroyed . | . . . . . Melee . | . . . . . Projectile . | . . . . . AOE . | . . . . . Terrain Rammed . | . . . . . Walls Destroyed . | . . . . . Machines Disabled . | . . . . . Actions | -11 -10 -10 -9 -9 --------- Run | Yrd Mat Min Mat Sto Total 1205 | 92 449 30 566 68 Wait 144 | . 29 . 112 3 Move 912 | 71 339 29 415 58 Hop . | . . . . . Pick Up 6 | 3 2 . 1 . Fast Attach 17 | 7 6 . 3 1 Attach 6 | . 3 1 1 1 Detach 5 | . 1 . 4 . Swap 10 | 3 3 . 4 . Drop 3 | 2 1 . . . Fire 99 | 6 62 . 26 5 Melee . | . . . . . Ram 1 | . 1 . . . Kick 1 | . 1 . . . Crush 1 | . 1 . . . Escape Stasis . | . . . . . Rewire . | . . . . . Trap . | . . . . . Miscellaneous . | . . . . . Route ------- -11/Scrapyard -10/Materials (discovered 2 exits: *Mat / [*Min]) -10/Mines -9/Materials (discovered 2 exits: [*Min] / *Sto) -9/Storage History --------- Turn | Location | Event 2 | -11/Scrapyard | Met Revision 17 9 | -11/Scrapyard | Discovered new exit (range 15) 126 | -11/Scrapyard | Entered Materials 309 | -10/Materials | Build established: Mutant 337 | -10/Materials | Discovered new exit (range 16) 617 | -10/Materials | Discovered new exit (range 8) 665 | -10/Materials | Core integrity fell below 50% 786 | -10/Materials | Core integrity fell below 20% 832 | -10/Materials | Lost 3 parts (1p2w) 857 | -10/Materials | Entered Mines 869 | -10/Mines | Learned Materials non-interactive machine intel 880 | -10/Mines | Discovered new exit (range 7) 884 | -10/Mines | Entered Materials 884 | -9/Materials | Evolved 2 slots: Utility x2 885 | -9/Materials | Loaded intel: 43 non-interactive machine locations 1008 | -9/Materials | Discovered new exit (range 7) 1176 | -9/Materials | Discovered new exit (range 16) 1510 | -9/Materials | Core integrity fell below 50% 1515 | -9/Materials | Core integrity fell below 20% 1520 | -9/Materials | Entered Storage 1545 | -9/Storage | Lost 3 parts (1p1n1u) 1562 | -9/Storage | Destroyed by Y-45 Defender with Heavy Assault Rifle Last Messages --------------- 01496_ M-13 Machinist repairs Flight Unit. 01498_ Aluminum Leg destroyed. 01505_ System corrupted: Matter fused (-7). 01514_ Sml. Storage Unit destroyed. 01516_ Acquired 10 matter. LOCATION=UNKNOWN GOAL=ESCAPE 01524_ O-16 Technician: "IFF HANDSHAKE FAILED. SECURING TERMINAL." 01527_ Connecting with Terminal... 01527_ Current location identified: Storage >>Trojan(Assimilate) Trojan loaded successfully. Testing... System interface override in place. 01527_ O-16 Technician accesses terminal... 01527_ O-16 Technician IFF database reprogrammed. 01528_ System corrupted: Energy discharge (-27). 01539_ Acquired ECM Suite. Map ----- +----------------------------------------------------+ | ????????????????????????????????????????? | | ????????????????????????????????????????? | | ????????????????????????????????????????? | | ????????????????????????????????????????? | | ????????????????????????????????????????? | | ????????????????????????????????????????? | | ????????????????????????????????????????? | | ????????????????????????????????????????? | | ????????????????????????????????????????? | | ????????????????????????????????????????? | | ????????????????????????????????????????? | | ????????????????????????????????????????? | | ????????????????????????????????????????? | | ????????????????????????????????????????? | | ????????????????????????????????????????? | | ????????????????????????????????????????? | | ??????????????????????? #???????????????? | | ????????##????????????? #???????????????? | | ????????# ""?????????? #???????????????? | | ????????#""R???####### ######??????????? | | ???????##"" "??# g ???????????? | | ???????? ?# ?????????????? | | ?????????? # ???????????????? | | ???????????? #a #?????????????????? | | ?????????????? Y #?????????????????? | | ???????????????#@ #?????????????????? | | ???????????????# #?????????????????? | | ???????????????# o #?????????????????? | | ???????????????# #?????????????????? | | ???????????????# #?????????????????? | | ???????????????# #?????????????????? | | ???????????????# #?????????????????? | | ???????????????# #?????????????????? | | ???????????????# #?????????????????? | | ???????????????# #?????????????????? | | ???????????????# #?????????????????? | | ???????????????# #?????????????????? | | ???????????????# #?????????????????? | | ???????????????# #?????????????????? | | ????????######## #?????????????????? | | ????????# #?????????????????? | | ????????# #?????????????????? | | ????????# #?????????????????? | | ????????#########+###+#?????????????????? | | ????????????# #?????????????????? | | ????????????# #?????????????????? | | ????????????# #?????????????????? | | ????????????# #?????????????????? | | ????????????# """ """ T#????????????????? | | ????????????# """ """ ##????????????????? | +----------------------------------------------------+ Best States ------------- Heat Dissipation 39 Energy Generation 14 Energy Capacity 265 Matter Stores 300 Matter Capacity 300 Sight Range 16 Terrain Scan Range 16 Terrain Scan Density 10 ECM Strength 1 Armor Coverage 150 Evasion (%) 50 Recoil Reduction 2 Item Schematics ----------------- None Robot Schematics ------------------ None Fabricated ------------ Nothing Alien Tech Used ----------------- None Achievements -------------- None Challenges ------------ None Game ------ Seed DispersionStealthCompanion Manual? 0 Play Time 00:17:24 Cumulative 56.4 hours Start 2025.04.26 @ 19:48:35 End 2025.04.27 @ 17:26:08 Sessions 5 Manual Loads 0 Difficulty Rogue Special Mode None Game No. 57 Rogue 53 Adventurer 4 Explorer 0 Win Type - Total 1 Types 1/0/0/0/0/0/0/0/0 Lore% 20 Gallery% 45 Achievement% 36 Wizard Run 0 Options --------- Layout 1 ASCII 0 Keyboard 1 Movement Numpad Keybinds 0 Fullscreen 1 Font 24/Smallcaps Map View 50x35 Zoom Use 0% Tactical HUD 1 Map Filters NONE Filters NONE Steam 1 RUN: cd0557ea-dce7-44fa-820e-9c6401278bdf